[Event "Czech Open-GM 2022"]
[Site "Pardubice"]
[Date "2022.07.25"]
[Round "4.39"]
[White "Rabatin, Jakub"]
[Black "Rakshitta Ravi"]
[Result "1-0"]
[ECO "A06"]
[WhiteElo "2349"]
[BlackElo "2185"]
[Annotator "TA"]
[PlyCount "113"]
[EventDate "2022.07.22"]
[EventType "swiss"]
[EventCountry "CZE"]
[SourceTitle "playchess.com"]
[Source "ChessBase"]
[SourceQuality "1"]
[TimeControl "40/5400+30:1800+30"]

{[%evp 11,113,10,25,-8,24,8,23,16,33,30,77,77,241,255,249,231,247,220,236,251,352,352,335,179,185,197,170,165,181,180,179,183,186,127,186,179,186,191,189,186,192,194,325,322,317,290,315,309,327,333,328,320,428,426,427,362,375,374,421,435,405,371,517,510,469,324,310,266,401,390,342,390,358,350,350,344,346,340,467,459,437,430,537,533,577,465,841,837,928,909,899,878,966,951,909,734,972,929,29963,5929,29982,29981,29984,29983]} 1. Nf3 {[%emt 0:00:03]} d5 {[%emt 0:02:39]} 2. g3 {[%emt 0:00:08]} Nd7 {[%emt 0:00:24]} 3. d4 {[%emt 0:05:01]} b5 {[%emt 0:00:10]} 4. a4 {[%emt 0:08:55]} b4 {[%emt 0:00:15]} 5. Bg2 {[%emt 0:01:31]} e6 {[%emt 0:00:06]} 6. O-O {[%emt 0:05:59]} Ngf6 {[%emt 0:00:06]} 7. Nbd2 {[%emt 0:01:41][%cal Oe2e4] D02: 1 d4 d5 2 Nf3 sidelines, including 2...Nf6 3 g3 and 2...Nf6 3 Bf4.} (7. c4 $5) 7... c5 {[%emt 0:03:31]} 8. e4 {[#]} dxe4 $146 {[%emt 0:15:02]} ({Predecessor:} 8... cxd4 9. exd5 Nxd5 10. Nxd4 Bb7 11. Nc4 Rc8 12. Qe2 Qc7 13. Nxe6 fxe6 14. Qxe6+ Be7 15. Re1 {1-0 (15) Mozharov,M (2564)-Schlosser,P (2579) Pardubice 2015}) 9. Ng5 {[%emt 0:14:14] White has an edge.} Ba6 {[%emt 0:08:55]} 10. Re1 {[%emt 0:00:27]} h6 {[%emt 0:08:00]} (10... Be7 $11 {is superior.}) 11. Ngxe4 $16 {[%emt 0:00:56]} cxd4 $2 {[%emt 0:00:08]} (11... Rc8 $16) 12. Nxf6+ $18 {[%emt 0:13:25]} Nxf6 {[%emt 0:00:22] [#]} 13. Bc6+ $1 {[%emt 0:00:29]} Nd7 {[%emt 0:00:45]} 14. Nb3 {[%emt 0:10:13]} Rc8 {[%emt 0:07:59]} 15. Nxd4 {[%emt 0:01:52]} Rxc6 {[%emt 0:04:48]} (15... Bc4 {was necessary.} 16. Be3 Be7) 16. Nxc6 {[%emt 0:00:05]} Qf6 {[%emt 0:00:05]} 17. Qd4 {[%emt 0:12:25]} (17. Re4 $142) 17... Bb7 {[%emt 0:03:52]} 18. Qxf6 {[%emt 0:03:51]} gxf6 {[%emt 0:00:05]} 19. Nd4 {[%emt 0:11:24]} Bc5 {[%emt 0:01:22]} 20. Nb3 {[%emt 0:04:18]} Bd6 {[%emt 0:00:19]} 21. Be3 {[%emt 0:01:18][%cal Bc1e3,Be3d4,Bd4f6][%mdl 32]} Ne5 {[%emt 0:03:02] [#]} 22. Nd4 {[%emt 0:01:18]} ({Resist} 22. Bxa7 $6 Nf3+ 23. Kf1 Ba6+ 24. Kg2 Nxe1+ 25. Rxe1 Ke7 $14) (22. Nd2 $1 $18) 22... Bc5 {[%emt 0:01:44]} (22... h5 $16 {is a better defense.}) 23. Red1 {[%emt 0:00:29]} Bxd4 {[%emt 0:02:01]} 24. Bxd4 {[%emt 0:00:05]} Nf3+ {[%emt 0:00:04]} 25. Kf1 {[%emt 0:00:05]} Nxh2+ {[%emt 0:00:25]} 26. Ke1 {[%emt 0:00:26]} h5 {[%emt 0:04:45]} (26... Nf3+ $142 27. Ke2 Ne5) 27. Bxf6 {[%emt 0:00:35][%csl Gf6][%cal Rd1d8]} O-O {[%emt 0:00:28]} 28. Rd8 {[%emt 0:00:17]} Rxd8 {[%emt 0:00:23]} 29. Bxd8 {[%emt 0:00:02][%mdl 4096] Endgame KRB-KBN} Nf3+ {[%emt 0:00:18]} 30. Ke2 {[%emt 0:00:28]} Nd4+ {[%emt 0:00:18]} 31. Kd3 {[%emt 0:01:22]} e5 {[%emt 0:00:04]} 32. Bf6 {[%emt 0:00:45]} Ba6+ {[%emt 0:00:44]} 33. Kd2 {[%emt 0:00:59]} Kh7 {[%emt 0:00:44]} 34. f4 {[%emt 0:01:15]} Nf3+ {[%emt 0:00:49]} 35. Ke3 {[%emt 0:00:10]} Nd4 {[%emt 0:00:03]} 36. Ke4 {[%emt 0:01:22]} Nxc2 {[%emt 0:02:41]} 37. Rc1 {[%emt 0:00:07]} b3 {[%emt 0:00:03]} 38. Bxe5 {[%emt 0:00:24]} Kg6 {[%emt 0:00:14]} 39. Kf3 {[%emt 0:00:45] Hoping for Rd1.} Kf5 {[%emt 0:00:12]} (39... Bc8 $142 40. Ke4 Bf5+ 41. Kd5 Bd7) 40. Rd1 {[%emt 0:00:27]} Bb7+ {[%emt 0:04:40]} 41. Kf2 {[%emt 0:30:34]} Bc6 {[%emt 0:35:27] Inhibits Rd7.} 42. a5 {[%emt 0:00:00]} Ke4 {[%emt 0:00:00]} 43. Rh1 {[%emt 0:00:00]} Nb4 {[%emt 0:00:00]} 44. Rxh5 {[%emt 0:00:00]} Bb5 {[%emt 0:00:00]} 45. Bc3 {[%emt 0:00:00] White threatens Re5+ and mate.} Nd3+ {[%emt 0:00:00]} 46. Kg2 {[%emt 0:00:00]} Bc6 {[%emt 0:00:00]} 47. Rh6 {[%emt 0:00:00]} Bb7 {[%emt 0:00:00]} 48. Rd6 {[%emt 0:00:00]} Ke3+ {[%emt 0:00:00]} (48... Nc5 $142 49. Kh2 a6) 49. Kh2 {[%emt 0:00:00]} Bc8 {[%emt 0:00:00]} 50. Rd8 {[%emt 0:00:00]} Be6 {[%emt 0:00:00]} 51. Ra8 {[%emt 0:00:00]} Nf2 {[%emt 0:00:00]} 52. Rxa7 {[%emt 0:00:00] aiming for Re7.} Kf3 {[%emt 0:00:00]} 53. a6 {[%emt 0:00:23]} Ne4 {[%emt 0:00:00]} 54. Bd4 {[%emt 0:01:10]} Nxg3 {[%emt 0:00:00]} 55. Re7 {[%emt 0:01:05][%cal Oe7e6] Rxe6! would kill now.} Ne2 {[%emt 0:00:00] [#]} 56. Rxe6 $1 {[%emt 0:00:13]} Nxd4 {[%emt 0:00:00]} (56... fxe6 57. Bb6) 57. Rb6 {[%emt 0:00:24] Weighted Error Value: White=0.18 (very precise) /Black=0.33} 1-0

[Event "Czech Open-GM 2022"]
[Site "Pardubice"]
[Date "2022.07.25"]
[Round "4.40"]
[White "Stauskas, Lukas"]
[Black "Zaehringer, Daniel"]
[Result "1/2-1/2"]
[ECO "D31"]
[WhiteElo "2348"]
[BlackElo "2166"]
[Annotator "TA"]
[PlyCount "119"]
[EventDate "2022.07.22"]
[EventType "swiss"]
[EventCountry "CZE"]
[SourceTitle "playchess.com"]
[Source "ChessBase"]
[SourceQuality "1"]
[TimeControl "40/5400+30:1800+30"]

{[%evp 16,119,21,0,0,0,0,0,0,0,0,0,34,39,59,0,0,11,291,286,343,349,348,331,313,89,94,50,49,50,50,50,46,55,52,15,15,15,21,16,16,16,58,61,64,63,86,29,20,33,25,21,17,4,7,0,88,88,88,88,88,88,88,88,88,88,88,88,88,88,88,88,88,88,88,88,88,88,88,60,60,60,93,60,93,60,115,60,93,93,115,93,115,115,115,46,46,0,0,0,0,0,0,0,0,0]} 1. d4 {[%emt 0:00:03]} d5 {[%emt 0:00:06]} 2. c4 {[%emt 0:00:05]} e6 {[%emt 0:00:07]} 3. Nc3 {[%emt 0:00:06]} c6 {[%emt 0:00:06]} 4. e4 {[%emt 0:00:07]} dxe4 {[%emt 0:00:05]} 5. Nxe4 {[%emt 0:00:05]} Bb4+ {[%emt 0:00:07]} 6. Bd2 {[%emt 0:00:07][%cal Bc1d2,Bd2b4,Bb4d6,Bd6e5][%mdl 32]} Qxd4 {[%emt 0:00:07]} 7. Bxb4 {[%emt 0:00:05]} Qxe4+ {[%emt 0:00:06]} 8. Be2 {[%emt 0:00:05]} Na6 {[%emt 0:00:12]} 9. Bd6 {[%emt 0:00:06]} (9. Ba5 $5 {[%cal Rd1d8]} Bd7 10. Nf3 $11) 9... Qxg2 {[%emt 0:01:07] D31: Queen's Gambit Declined: Semi-Slav without ...Nf6 (+ Marshall Gambit and Noteboom) and Exchange Variation lines without ...Nf6.} 10. Qd2 $1 {[%emt 0:00:09]} Nf6 {[%emt 0:00:50]} (10... Qxh1 $2 11. O-O-O e5 12. Bxe5 $18) 11. Bf3 {[%emt 0:00:13]} Qg6 {[%emt 0:00:14] White must now prevent ...Ne4.} 12. O-O-O $40 {[%emt 0:00:44][%mdl 128] And now Ne2 would win. Black needs to defend precisely.} e5 $1 {[%emt 0:08:35] Strongly threatening ...e4.} (12... Ne4 $2 13. Bxe4 Qf6 14. Nf3 $18) 13. Bxe5 {[%emt 0:01:49][%csl Gd1][%cal Rd2d8] This bishop pair is nice.} O-O {[%emt 0:00:59]} (13... Be6 $5 {[%cal Rf6e4]}) 14. Ne2 {[%emt 0:04:15][%mdl 1024] Rhg1 is the strong threat. White has compensation.} Bg4 {[%emt 0:33:09]} 15. Rhg1 {[%emt 0:30:48] [#]} (15. Bxg4 $1 $14 Nxg4 16. Rhg1) 15... h5 $146 {[%emt 0:19:36][%cal Oa8d8]} ({Predecessor:} 15... Bxf3 16. Rxg6 hxg6 17. Bxf6 gxf6 18. Qe3 Bg4 19. f3 Rfe8 20. Qf2 Be6 21. Qh4 Kg7 {1-0 (30) Vavrak,P (2428)-Volodin,V (2254) Tatranske Zruby 2007}) 16. h3 {[%emt 0:30:29]} Qf5 {[%emt 0:05:01][%mdl 8192]} (16... Rad8 $1 $11 {and Black has nothing to worry.} 17. Nd4 (17. Qxd8 Rxd8 18. Rxd8+ Kh7 $11) 17... c5 18. hxg4 Nb4) 17. Qf4 $1 $18 {[%emt 0:02:14]} Qxf4+ {[%emt 0:06:52]} 18. Nxf4 {[%emt 0:00:06]} Bxf3 {[%emt 0:00:33][%cal Bg4f3,Bf3e4,Be4f5][%mdl 32]} 19. Bxf6 {[%emt 0:00:06]} g6 {[%emt 0:00:11]} (19... Bxd1 20. Rxg7+ Kh8 21. Rxf7+ Kg8 22. Rg7+ Kh8 23. Ng6#) 20. Rd7 {[%emt 0:00:51]} (20. Rd3 $18 {and the rest is easy.}) 20... Be4 $16 {[%emt 0:05:46]} (20... Nc5 $2 21. Rxg6+ $1 {[%mdl 512]} Kh7 22. Rg7+ Kh6 23. Rdxf7 Rxf7 24. Rxf7 $18) 21. Be7 {[%emt 0:00:23] Prevents Nc5. 0x0.0024972c0e46dp-1022s more active pieces. The black rooks are badly placed.} ({Resist} 21. Rxb7 Nc5 22. Rc7 Rfc8 23. Rxc8+ Rxc8 $14) 21... Bf5 {[%emt 0:01:15]} 22. Rxb7 {[%emt 0:00:20]} Rfb8 {[%emt 0:00:13]} 23. Rxb8+ {[%emt 0:00:29]} Rxb8 {[%emt 0:00:06]} 24. Nxh5 {[%emt 0:14:35]} Nb4 $1 {[%emt 0:03:43]} 25. b3 {[%emt 0:04:05]} (25. Bxb4 $5 Rxb4 26. b3 $14) 25... Nd3+ {[%emt 0:04:29]} 26. Kd2 {[%emt 0:00:14] next Ng3 is good for White.} Nxf2 {[%emt 0:00:09]} 27. Nf6+ {[%emt 0:03:45]} Kg7 {[%emt 0:00:44]} 28. h4 {[%emt 0:01:46]} Ne4+ {[%emt 0:01:37]} 29. Nxe4 {[%emt 0:00:09]} Bxe4 $14 {[%emt 0:00:04][%mdl 4096] Endgame KRB-KRB} 30. Kc3 {[%emt 0:01:12]} f5 {[%emt 0:05:58]} 31. h5 {[%emt 0:01:08]} (31. Bc5 $16) 31... Kf7 $1 $11 {[%emt 0:01:46][%csl LRe7,LRh5]} 32. Bd6 {[%emt 0:00:30]} Rg8 {[%emt 0:00:31]} 33. hxg6+ {[%emt 0:00:56]} (33. h6 {is interesting.} g5 34. h7 Rh8 35. Rxg5 Rxh7 36. Kd4) 33... Rxg6 {[%emt 0:00:55]} 34. Rxg6 {[%emt 0:00:10]} Kxg6 {[%emt 0:00:01] KB-KB} 35. Bb8 {[%emt 0:00:40]} Kf6 {[%emt 0:00:52]} (35... a6 $11) 36. Bxa7 $16 {[%emt 0:00:17]} Ke6 {[%emt 0:00:07]} 37. Kd4 {[%emt 0:01:17]} Kd7 {[%emt 0:00:42]} 38. Bb8 {[%emt 0:00:38]} Kc8 {[%emt 0:00:09]} 39. Bf4 {[%emt 0:00:08]} Kb7 {[%emt 0:00:14]} 40. Kc5 {[%emt 0:01:49]} Bf3 {[%emt 0:00:37]} 41. Kb4 {[%emt 0:06:02]} Be4 {[%emt 0:02:42]} 42. Be3 {[%emt 0:00:23]} Bf3 {[%emt 0:00:18]} 43. Kc3 {[%emt 0:00:09]} Be4 {[%emt 0:00:21]} 44. Kd2 {[%emt 0:00:38]} Bb1 {[%emt 0:00:14]} 45. a4 {[%emt 0:00:53]} Be4 {[%emt 0:00:11]} 46. b4 {[%emt 0:00:11][%cal Bb3b4,Bb4b5][%mdl 32]} Bg2 {[%emt 0:02:11]} 47. b5 {[%emt 0:00:11]} Bf1 {[%emt 0:00:31]} 48. Kc3 {[%emt 0:00:06]} Be2 {[%emt 0:01:20]} 49. Kb4 {[%emt 0:00:11]} Bf1 {[%emt 0:00:55]} 50. Kc5 {[%emt 0:00:23]} Bg2 {[%emt 0:00:29] [#]} (50... cxb5 $1 $14 51. axb5 (51. cxb5 f4 $11) 51... f4) 51. Kd6 {[%emt 0:04:17]} ({White should play} 51. b6 $1 $16) 51... Bf3 {[%emt 0:00:48]} 52. b6 {[%emt 0:01:19] Hoping for a5.} Be2 {[%emt 0:00:37]} 53. Kc5 {[%emt 0:00:05]} Bf1 {[%emt 0:01:48]} 54. a5 {[%emt 0:00:21]} Be2 {[%emt 0:01:52]} 55. a6+ {[%emt 0:05:29]} ({White should try} 55. Bf4 $16) 55... Kxa6 $14 {[%emt 0:00:07]} 56. Kxc6 {[%emt 0:00:07]} (56. Kd6 $14 Kb7 57. c5) 56... Bxc4 $11 {[%emt 0:00:24] The position is equal.} 57. b7 {[%emt 0:00:06]} Bd5+ $1 {[%emt 0:00:07]} 58. Kxd5 {[%emt 0:00:04]} Kxb7 {[%emt 0:00:04]} 59. Ke5 {[%emt 0:00:06]} Kc6 {[%emt 0:00:06]} 60. Kxf5 {[%emt 0:00:04] Weighted Error Value: White=0.19 (very precise) /Black=0.17 (very precise)} 1/2-1/2

[Event "Czech Open-GM 2022"]
[Site "Pardubice"]
[Date "2022.07.25"]
[Round "4.42"]
[White "Stinka, Jakub"]
[Black "Hajiyev, Kanan"]
[Result "1-0"]
[ECO "D35"]
[WhiteElo "2335"]
[BlackElo "2142"]
[Annotator "TA"]
[PlyCount "69"]
[EventDate "2022.07.22"]
[EventType "swiss"]
[EventCountry "CZE"]
[SourceTitle "playchess.com"]
[Source "ChessBase"]
[SourceQuality "1"]
[TimeControl "40/5400+30:1800+30"]

{[%evp 21,69,6,106,42,39,45,45,36,41,61,67,37,54,58,78,82,62,64,81,58,127,133,139,118,119,122,179,153,266,257,248,239,243,235,356,215,206,200,398,397,673,673,29982,29983,29983,29984,29984,29985,29981,29982]} 1. d4 {[%emt 0:00:02]} d5 {[%emt 0:09:45]} 2. c4 {[%emt 0:00:12]} e6 {[%emt 0:00:03]} 3. Nc3 {[%emt 0:00:24]} Nf6 {[%emt 0:00:09]} 4. cxd5 {[%emt 0:01:31]} exd5 {[%emt 0:01:59]} 5. Bg5 {[%emt 0:00:16]} Be7 {[%emt 0:00:12]} 6. e3 {[%emt 0:00:22]} c6 {[%emt 0:01:24]} 7. Qc2 {[%emt 0:00:20]} O-O {[%emt 0:01:30]} 8. Bd3 {[%emt 0:01:09]} Nbd7 {[%emt 0:04:33][%cal Bb8d7,Bd7f8,Bf8e6][%mdl 32]} 9. Nge2 {[%emt 0:00:31]} Re8 {[%emt 0:01:01]} 10. O-O {[%emt 0:00:26]} Nf8 {[%emt 0:01:43]} 11. f3 {[%emt 0:00:26]} c5 {[%emt 0:26:04] 11...g6 is the modern continuation.} (11... g6 $11) 12. Rad1 {[%emt 0:07:59] White is more active. D36: Queen's Gambit Declined: Exchange Variation: Main line (5 Bg5 c6 6 Qc2).} ({White should play} 12. Bxf6 $16 Bxf6 13. dxc5) 12... c4 $14 {[%emt 0:12:35]} 13. Bf5 {[%emt 0:00:18]} Bxf5 {[%emt 0:02:09]} 14. Qxf5 {[%emt 0:00:05] Hoping for Bxf6. White is slightly better.} g6 {[%emt 0:04:07]} 15. Qc2 {[%emt 0:02:24]} Ne6 {[%emt 0:01:02]} 16. Bh4 {[%emt 0:01:54]} (16. Bxf6 $5 Bxf6 17. e4 $16) 16... Qd7 {[%emt 0:01:37][%cal Of6g4] [#]} 17. e4 $146 {[%emt 0:11:29]} ({Predecessor:} 17. Kh1 Ng4 18. fxg4 Bxh4 19. e4 Nc7 20. exd5 Nxd5 21. Nxd5 Qxd5 22. Nf4 Qc6 23. d5 {1-0 (48) Juergens,V (2240)-Flear,C (2170) Athens 1989}) 17... Nxe4 {[%emt 0:08:15]} 18. fxe4 {[#] Strongly threatening Bxe7.} Bxh4 19. Nxd5 {[%emt 0:03:48]} b5 {[%emt 0:02:27][%cal Of7f5]} 20. a4 {[%emt 0:15:12]} f5 {[%emt 0:01:21] White leaves nothing to chance now.} ({Better is} 20... bxa4 $14 21. Nec3 (21. Qxc4 Rec8 $14) 21... a3) 21. axb5 $16 {[%emt 0:15:06]} fxe4 {[%emt 0:02:22]} 22. Qxc4 {[%emt 0:04:50]} ({Don't play} 22. Qxe4 Nc7 23. Qxh4 Nxd5 $14) 22... Rac8 {[%emt 0:00:32]} 23. Qb3 {[%emt 0:00:12][%cal Of1f4]} Rb8 {[%emt 0:00:14]} (23... Kh8 $16) 24. Ndc3 $18 {[%emt 0:01:13] Pair of Knights!} Kg7 {[%emt 0:00:30]} (24... Bd8 $16 25. Nxe4 Rxb5) 25. d5 {[%emt 0:09:26]} ({Resist} 25. Nxe4 $6 Rxb5 26. Qc3 Rd5 $18) 25... Nc7 {[%emt 0:01:50]} 26. Qc4 {[%emt 0:02:42]} Nxb5 {[%emt 0:01:45]} 27. Nxe4 {[%emt 0:03:13] Nf4 is the strong threat.} Qe7 {[%emt 0:09:44]} (27... Nd6 $142 28. Nxd6 Qxd6) 28. N2c3 {[%emt 0:04:27]} Nxc3 {[%emt 0:00:25]} 29. Qxc3+ {[%emt 0:02:34]} Kg8 $2 {[%emt 0:02:46] [#]} (29... Qe5 {was necessary.}) 30. Rf4 {[%emt 0:01:04]} Bg5 {[%emt 0:01:43]} (30... Qb4) 31. d6 Qd8 32. Qc4+ {[%emt 0:02:58] White mates.} Kh8 {[%emt 0:00:12]} 33. Qd4+ {[%emt 0:00:06]} Kg8 {[%emt 0:00:02]} 34. Qd5+ {[%emt 0:00:07]} Kh8 {[%emt 0:01:08]} 35. Nxg5 {[%emt 0:00:31] Weighted Error Value: White=0.13 (very precise) /Black=0.79} 1-0

[Event "Czech Open-GM 2022"]
[Site "Pardubice"]
[Date "2022.07.25"]
[Round "4.43"]
[White "Bouska, Jiri"]
[Black "Nguyen, Alex Dac-Vuong"]
[Result "1/2-1/2"]
[ECO "C01"]
[WhiteElo "2157"]
[BlackElo "2318"]
[Annotator "TA"]
[PlyCount "81"]
[EventDate "2022.07.22"]
[EventType "swiss"]
[EventCountry "CZE"]
[SourceTitle "playchess.com"]
[Source "ChessBase"]
[SourceQuality "1"]
[TimeControl "40/5400+30:1800+30"]

{[%evp 10,81,28,20,20,27,35,31,57,37,28,28,30,21,44,10,16,-24,-9,-18,-29,-22,-26,-27,-23,-30,0,0,0,0,0,-9,-13,-21,29,13,33,33,36,33,21,0,49,0,0,0,0,-4,-6,-13,-12,-16,-18,-16,-10,-12,-10,-37,-26,-31,-28,-37,0,0,0,0,0,0,0,0,0,0,0,-87]} 1. e4 {[%emt 0:00:09]} e6 {[%emt 0:00:02]} 2. d4 {[%emt 0:00:11]} d5 {[%emt 0:00:04]} 3. exd5 {[%emt 0:00:07]} exd5 {[%emt 0:00:05]} 4. Nf3 {[%emt 0:00:09]} Nf6 {[%emt 0:00:05]} 5. Bd3 {[%emt 0:00:06]} c5 {[%emt 0:00:06]} 6. c3 {[%emt 0:00:34]} Nc6 {[%emt 0:01:05] B22: Sicilian: 2 c3.} 7. O-O {[%emt 0:06:51]} c4 {[%emt 0:05:51]} 8. Bc2 {[%emt 0:00:27]} Bg4 {[%emt 0:02:49] White is slightly better.} 9. Re1+ {[%emt 0:00:23]} Be7 {[%emt 0:00:06]} 10. Nbd2 {[%emt 0:00:33][%cal Bb1d2,Bd2f1,Bf1g3][%mdl 32]} O-O {[%emt 0:00:18]} 11. Nf1 {[%emt 0:00:10]} Re8 {[%emt 0:10:35]} 12. Ng3 {[%emt 0:16:02]} Bd6 {[%emt 0:02:52] [#]} 13. Bd2 $146 {[%emt 0:07:15]} ({Predecessor:} 13. Rxe8+ Qxe8 14. Bg5 Nh5 15. Nxh5 Bxh5 16. Be3 b5 17. Qe2 a5 18. Re1 Qd8 19. h3 {1-0 (58) Shubenkova,V (1762)-Shuvalov,E (2182) Chess.com INT 2021}) 13... Qc7 {[%emt 0:09:59]} 14. Rxe8+ {[%emt 0:05:55]} Rxe8 {[%emt 0:00:11]} 15. h3 {[%emt 0:02:18]} Bd7 {[%emt 0:05:08]} 16. Nf5 {[%emt 0:05:06]} Bxf5 {[%emt 0:00:32]} 17. Bxf5 {[%emt 0:00:02]} Ne4 {[%emt 0:08:57]} 18. Qc2 {[%emt 0:13:56]} g6 {[%emt 0:04:44]} 19. Bxe4 {[%emt 0:00:26]} Rxe4 {[%emt 0:00:19]} 20. Be3 {[%emt 0:05:44]} b5 {[%emt 0:01:31]} 21. b3 {[%emt 0:03:16]} Qa5 {[%emt 0:08:00]} (21... Re8 $142) 22. a4 $11 {[%emt 0:08:02]} Re8 {[%emt 0:11:07]} 23. b4 {[%emt 0:00:29]} Qb6 {[%emt 0:00:49]} 24. axb5 {[%emt 0:00:40]} Qxb5 {[%emt 0:00:05]} 25. Qa4 {[%emt 0:06:53]} Rb8 {[%emt 0:00:34]} (25... Qxa4 $11 {deserves consideration.} 26. Rxa4 Rb8) 26. Qxb5 {[%emt 0:02:40]} (26. Qd1 $1 $14) 26... Rxb5 {[%emt 0:00:01]} 27. Ra6 {[%emt 0:00:01]} Rb6 {[%emt 0:00:20]} 28. Rxb6 {[%emt 0:00:28]} axb6 {[%emt 0:00:02][%mdl 4096] Endgame KBN-KBN} 29. Ne1 {[%emt 0:02:10]} Na7 {[%emt 0:02:55]} 30. Nc2 {[%emt 0:00:54]} Nb5 {[%emt 0:00:03]} 31. Bd2 {[%emt 0:00:07]} f5 {[%emt 0:04:17]} 32. g3 {[%emt 0:01:44] Against f4} Kf7 {[%emt 0:00:06][%cal Og6g5]} 33. Kg2 {[%emt 0:00:19]} Ke6 {[%emt 0:00:06]} 34. Kf3 {[%emt 0:01:25]} Bf8 {[%emt 0:07:24]} 35. h4 {[%emt 0:03:15]} h5 {[%emt 0:01:43][%cal Of5f4]} 36. Ne1 {[%emt 0:02:59] The position is equal.} Nd6 {[%emt 0:07:26]} 37. Ng2 {[%emt 0:00:53]} Ne4 {[%emt 0:00:26]} 38. Nf4+ {[%emt 0:00:11]} Kf7 $1 {[%emt 0:04:49]} 39. Be1 {[%emt 0:01:51]} Nf6 {[%emt 0:00:07]} 40. Ke2 {[%emt 0:03:46]} Bh6 {[%emt 0:00:18]} 41. f3 {[%emt 0:05:53] Weighted Error Value: White=0.08 (flawless) /Black=0.08 (flawless)} (41. Kf3 $11 {keeps the balance.}) 1/2-1/2

[Event "Czech Open-GM 2022"]
[Site "Pardubice"]
[Date "2022.07.25"]
[Round "4.44"]
[White "Michelle Catherina, P."]
[Black "Kistrup, Nicolai"]
[Result "1/2-1/2"]
[ECO "C44"]
[WhiteElo "2141"]
[BlackElo "2310"]
[Annotator "TA"]
[PlyCount "103"]
[EventDate "2022.07.22"]
[EventType "swiss"]
[EventCountry "CZE"]
[SourceTitle "playchess.com"]
[Source "ChessBase"]
[SourceQuality "1"]
[TimeControl "40/5400+30:1800+30"]

{[%evp 10,103,-4,-3,7,-4,28,11,10,0,22,-13,0,-24,15,-20,-16,-6,-6,-10,-7,-2,-7,-4,-8,-27,-16,-35,0,-66,-74,-68,-6,-8,-14,-13,0,0,24,0,0,0,0,0,0,0,0,0,38,46,43,40,41,24,36,31,44,36,45,23,29,27,61,68,61,0,0,0,0,0,0,0,0,0,0,0,0,0,0,0,0,0,0,0,0,0,0,0,0,0,0,0,0,0,0,0]} 1. e4 {[%emt 0:02:31]} e5 {[%emt 0:00:15]} 2. Nf3 {[%emt 0:00:12]} Nc6 {[%emt 0:00:04]} 3. g3 {[%emt 0:00:13]} Nf6 {[%emt 0:10:44][%cal Bg8f6,Bf6d5,Bd5e7,Be7f5][%mdl 32]} 4. d3 {[%emt 0:00:10]} d5 {[%emt 0:08:50]} 5. exd5 {[%emt 0:00:18]} Nxd5 {[%emt 0:00:41]} 6. Bg2 {[%emt 0:00:06]} Bc5 {[%emt 0:09:25] C44: Ponziani Opening and Scotch Gambit.} 7. O-O {[%emt 0:00:19]} Nde7 {[%emt 0:10:07] [#]} 8. a3 $146 {[%emt 0:03:13]} ({Predecessor:} 8. Nbd2 O-O 9. Nc4 f6 10. Be3 Bxe3 11. Nxe3 Be6 12. h4 Qd7 13. Kh2 Rad8 14. Rh1 {0-1 (38) Amato de Vercosa Cha,J (1851)-De Souza,R Tijuca 2012}) 8... a5 {[%emt 0:02:06] Against b4} 9. Nc3 {[%emt 0:03:34]} Nf5 {[%emt 0:07:38]} 10. Bd2 {[%emt 0:10:37][%cal Ob2b4]} f6 {[%emt 0:03:10]} 11. Ne4 {[%emt 0:04:10]} Be7 {[%emt 0:07:34]} 12. Qb1 {[%emt 0:04:27]} O-O {[%emt 0:09:06]} 13. b4 {[%emt 0:12:04]} axb4 {[%emt 0:01:01]} 14. axb4 {[%emt 0:01:13]} Rxa1 {[%emt 0:01:08]} 15. Qb3+ {[%emt 0:00:26]} Kh8 {[%emt 0:00:40]} 16. Rxa1 {[%emt 0:00:06]} Nfd4 {[%emt 0:01:25]} 17. Nxd4 {[%emt 0:05:46]} Nxd4 {[%emt 0:00:04]} 18. Qb1 {[%emt 0:00:56]} Be6 {[%emt 0:10:27]} (18... f5 {looks sharper.} 19. Nc5 f4 20. Qd1 f3) 19. c4 {[%emt 0:17:58]} (19. Be3 $11) 19... Bg4 $15 {[%emt 0:07:03]} 20. Kh1 {[%emt 0:11:27]} Bf3 {[%emt 0:01:51]} (20... f5 $15 21. Nc5 b6) 21. Bc3 $11 {[%emt 0:02:15]} Bxg2+ {[%emt 0:04:11]} 22. Kxg2 {[%emt 0:00:04]} b6 {[%emt 0:00:17]} 23. Qb2 {[%emt 0:03:47]} f5 {[%emt 0:02:06]} 24. Bxd4 {[%emt 0:02:36]} Qxd4 {[%emt 0:01:34]} 25. Qxd4 {[%emt 0:03:01]} exd4 {[%emt 0:00:04][%mdl 4096] Endgame KRB-KRN} 26. Nd2 {[%emt 0:00:34]} Bxb4 {[%emt 0:00:05]} 27. Nf3 {[%emt 0:00:10]} Ba5 {[%emt 0:01:46]} 28. Nxd4 {[%emt 0:03:57]} Rd8 {[%emt 0:00:35]} (28... Bc3 $5 {[%cal Rc3a1]} 29. Ne6 Bxa1 30. Nxf8 c6 $11) 29. Nc6 {[%emt 0:01:20]} Rxd3 {[%emt 0:00:05]} 30. Nxa5 {[%emt 0:00:10]} bxa5 {[%emt 0:00:04]} 31. Rxa5 $14 {[%emt 0:00:06] [#] Ra8+ would kill now. KR-KR} g6 {[%emt 0:00:08]} 32. Rc5 {[%emt 0:04:07]} Rd7 {[%emt 0:00:07]} 33. Kf3 {[%emt 0:00:31]} Kg7 {[%emt 0:00:20]} 34. Kf4 {[%emt 0:00:24]} Re7 {[%emt 0:00:49]} 35. f3 {[%emt 0:00:44]} h6 {[%emt 0:01:47]} 36. Rc6 {[%emt 0:01:04]} Kf7 $1 {[%emt 0:00:31]} 37. h3 {[%emt 0:01:35]} ({Better is} 37. g4 $14 fxg4 38. fxg4) 37... Re6 $1 $11 {[%emt 0:00:39] The position is equal.} 38. Rxc7+ {[%emt 0:01:25]} Kf6 {[%emt 0:00:05][%csl Gf6,Gh6][%cal Rg6g5] [#]} 39. g4 {Strongly threatening gxf5.} g5+ {[%emt 0:00:12]} 40. Kg3 {[%emt 0:00:11]} f4+ {[%emt 0:00:44]} 41. Kf2 {[%emt 0:30:49]} Ra6 {[%emt 0:18:35]} 42. Rd7 {[%emt 0:00:00]} Ra2+ {[%emt 0:02:49]} 43. Ke1 {[%emt 0:00:00]} Rc2 {[%emt 0:03:49]} 44. Rd6+ {[%emt 0:00:00]} Ke5 {[%emt 0:00:32]} 45. Rxh6 {[%emt 0:00:00]} Kd4 {[%emt 0:02:00] White must now prevent ...Ke3.} 46. Re6 Kd3 47. Re4 {[%emt 0:00:00]} Rc1+ {[%emt 0:01:21]} 48. Kf2 {[%emt 0:00:00]} Rc2+ {[%emt 0:00:00]} 49. Kf1 {[%emt 0:01:12]} Rc1+ {[%emt 0:00:00]} 50. Kf2 {[%emt 0:00:56]} Rc2+ 51. Kf1 {[%emt 0:01:10]} Rc1+ {[%emt 0:00:16]} 52. Kf2 {Weighted Error Value: White=0.10 (very precise) /Black=0.09 (flawless)} 1/2-1/2